bitfinex/quotes_ETHUSD_20220311
["timestamp","ask_amount","ask_price","bid_price","bid_amount"]
[1647039523590,1.94711,2568.4,2567.5,0.1165562]
[1647039523790,0.9736,2568.1,2567.5,0.1165562]
[1647039523991,0.05993374,2568.0,2567.5,0.1165562]
[1647039524391,0.9736,2568.1,2567.5,0.0665562]
[1647039524594,0.0545593,2568.4,2567.6,2.91209568]
[1647039524838,0.97337,2568.9,2567.6,1.3]
[1647039525040,0.00426073,2568.9,2567.8,2.91209568]
[1647039525241,0.00426073,2568.9,2567.8,4.21209568]
[1647039525441,0.00426073,2568.9,2567.8,4.21367925]
[1647039525643,0.00426073,2568.9,2567.8,1.00158357]
[1647039525940,0.00426073,2568.9,2567.7,0.00426276]
[1647039525941,1.03194304,2568.5,2567.5,0.06813977]
[1647039526141,1.03194304,2568.5,2568.2,0.00461425]
[1647039526344,3.5,2568.4,2568.2,0.00461425]
[1647039526540,0.14999877,2568.3,2568.2,0.00461425]
[1647039527141,0.14999877,2568.3,2567.5,0.0665562]
[1647039527342,0.97368,2568.1,2567.8,0.01845977]
[1647039527546,1.06158432,2568.1,2567.8,0.01845977]
[1647039527946,1.06158432,2568.1,2567.5,0.0665562]
[1647039528346,1.06158432,2568.1,2567.8,0.00160243]
[1647039528783,0.08790432,2567.9,2567.8,0.00160243]
[1647039529084,0.08790432,2567.9,2567.5,0.0665562]
[1647039529283,1.06174432,2567.9,2567.5,0.0665562]
[1647039529485,0.06110666,2567.7,2567.5,0.0665562]
[1647039530686,0.14901098,2567.7,2567.5,0.07116664]
[1647039531485,0.14901098,2567.7,2567.5,0.0665562]
[1647039531486,0.06110666,2567.7,2567.5,0.0665562]
[1647039531885,0.06110666,2567.7,2567.5,0.07116664]
[1647039532941,0.06110666,2567.7,2567.5,0.0665562]
[1647039533538,1.94768,2567.7,2567.5,0.0710145]
[1647039533738,0.05437028,2567.6,2567.5,0.0710145]
[1647039533939,0.05437028,2567.6,2567.5,0.0665562]
[1647039534140,0.05437028,2567.6,2567.5,0.07087729]
[1647039535240,0.05437028,2567.6,2567.5,0.0665562]
[1647039535641,3.54624805,2567.6,2567.5,0.0665562]
[1647039535843,0.13415237,2567.6,2567.5,0.0665562]
[1647039536093,0.14415237,2567.6,2567.5,0.0665562]
[1647039536485,0.13415237,2567.6,2567.5,0.0165562]
[1647039537488,1.23743845,2567.7,2567.5,0.0165562]
[1647039537688,1.28220998,2567.7,2567.5,0.0165562]
[1647039538194,1.01856153,2567.7,2567.5,0.0165562]
[1647039538590,1.94739,2568.1,2567.5,0.0165562]
[1647039538792,0.04258444,2568.5,2567.7,11.85]
[1647039538990,8.49638899,2568.7,2567.8,0.08479211]
[1647039539391,8.49638899,2568.7,2567.9,0.07607346]
[1647039539693,0.97357,2568.5,2567.9,0.07607346]
[1647039539947,12.15509811,2568.4,2567.9,0.07607346]
[1647039540346,12.15509811,2568.4,2568.2,0.00429629]
[1647039540753,13.12862811,2568.4,2568.2,0.00429629]
[1647039540947,12.15509811,2568.4,2568.2,0.00429629]
[1647039541949,12.15509811,2568.4,2568.0,11.85]
[1647039542148,12.15509811,2568.4,2568.0,13.8233991]
[1647039542349,12.15509811,2568.4,2568.2,0.00397956]
[1647039542950,12.15509811,2568.4,2568.1,0.00397961]
[1647039543610,12.15509811,2568.4,2568.0,14.7967991]
[1647039544005,12.15509811,2568.4,2568.1,0.00426801]
[1647039544407,12.15509811,2568.4,2568.3,11.85]
[1647039544606,12.15509811,2568.4,2568.3,12.8233643]
[1647039546308,0.00460566,2568.9,2568.3,12.8233643]
[1647039546608,0.97800566,2568.9,2568.3,12.8233643]
[1647039547440,0.97800566,2568.9,2568.5,0.00445435]
[1647039547441,0.97785363,2568.9,2568.5,0.00445435]
[1647039548442,0.9734,2568.9,2568.4,0.9733265]
[1647039548644,0.97770284,2568.9,2568.6,0.00430337]
[1647039549643,0.9734,2568.9,2568.4,0.9733265]
[1647039549842,0.9777029,2568.9,2568.6,0.00430343]
[1647039550742,0.9734,2568.9,2568.4,0.9733265]
[1647039551388,0.97771311,2568.9,2568.6,0.00431365]
[1647039551589,0.00431311,2568.9,2568.6,12.82758355]
[1647039551794,0.00431311,2568.9,2568.6,13.82758355]
[1647039552091,11.73824135,2569.5,2568.6,14.7963299]
[1647039552291,11.73824135,2569.5,2569.0,11.85]
[1647039552492,11.73824135,2569.5,2569.0,12.85]
[1647039552694,11.73824135,2569.5,2569.1,11.85]
[1647039553093,11.73824135,2569.5,2569.1,13.82296]
[1647039553293,11.73824135,2569.5,2569.2,11.9271706]
[1647039553294,11.46464135,2569.5,2569.2,11.9271706]
[1647039553494,11.46464135,2569.5,2569.3,0.07766267]
[1647039553696,3.5,2570.0,2569.4,11.85]
[1647039553895,3.5,2570.4,2569.6,0.9728326]
[1647039554194,6.1256,2570.5,2569.7,1.05788101]
[1647039554195,11.02182834,2570.3,2569.7,1.05788101]
[1647039554393,11.02182834,2570.3,2569.7,2.03066101]
[1647039554394,7.34236468,2570.2,2569.7,2.03066101]
[1647039554852,0.00445789,2570.1,2569.7,2.03066101]
[1647039555241,0.00445789,2570.1,2569.8,0.9728326]
[1647039555443,0.00445789,2570.1,2569.8,1.9455726]
[1647039555648,0.00445789,2570.1,2569.9,0.97275]
[1647039555845,7.34236468,2570.2,2570.0,0.26348696]
[1647039556048,7.34237566,2570.7,2570.0,14.05870696]
[1647039556248,7.34237566,2570.7,2570.1,0.0829597]
[1647039556544,0.04734081,2571.0,2570.1,0.0829597]
[1647039556944,0.0594426,2571.2,2570.1,0.0829597]
[1647039557149,1.94544,2570.9,2570.2,0.972629]
[1647039557345,0.00286432,2570.5,2570.2,0.06995021]
[1647039557547,1.94544,2570.9,2570.5,0.00011858]
[1647039557948,0.04700753,2571.2,2570.5,0.00011858]
[1647039558153,1.94517,2571.1,2570.6,0.972539]
[1647039559496,0.00300749,2571.0,2570.6,0.972539]
[1647039559697,0.97553749,2571.0,2570.6,0.972539]
[1647039560096,0.97553749,2571.0,2570.7,0.08140132]
[1647039560498,1.945,2571.4,2570.7,1.05387132]
[1647039560696,0.00300749,2570.9,2570.7,1.05387132]
[1647039561307,0.00300749,2570.9,2570.7,0.97247]
[1647039561696,1.945,2571.4,2570.8,0.1943]
[1647039561899,1.945,2571.4,2570.8,13.9891484]
[1647039561900,0.00461111,2570.9,2570.8,13.9891484]
[1647039562350,0.00461111,2570.9,2570.8,14.9891484]
[1647039563146,0.97243,2571.2,2570.8,14.9891484]
[1647039563546,0.00461108,2571.0,2570.8,14.9891484]
[1647039564148,1.94477,2571.6,2571.0,11.85]
[1647039564347,1.94477,2571.6,2571.0,12.0443]
[1647039564546,1.94477,2571.6,2571.0,11.85]
[1647039565148,0.97237,2571.4,2571.0,11.85]
[1647039565749,0.976714,2571.4,2571.0,11.85]
[1647039566604,0.92237,2571.4,2571.0,11.85]
[1647039566803,0.00419746,2571.3,2571.0,11.85]
[1647039567504,0.00419746,2571.3,2571.1,0.1943]
[1647039567704,0.92237,2571.4,2571.1,0.1943]
[1647039567903,0.00438341,2571.3,2571.0,12.0443]
[1647039569004,0.92237,2571.4,2571.0,12.0443]
[1647039569207,0.00438341,2571.3,2571.0,12.0443]
[1647039569404,0.00438341,2571.3,2571.0,11.8143]
[1647039570144,0.92237,2571.4,2571.0,11.8143]
[1647039570342,0.00438536,2571.3,2571.0,11.8143]
[1647039571346,0.92237,2571.4,2571.0,11.8143]
[1647039571545,0.00432248,2571.3,2571.0,11.8143]
[1647039572550,0.92237,2571.4,2571.0,11.8143]
[1647039572751,0.00432248,2571.3,2571.0,11.8143]
[1647039573700,0.92237,2571.4,2571.0,11.8143]
[1647039573901,0.00432449,2571.3,2570.8,12.85]
[1647039574102,3.50432449,2571.3,2570.7,0.1943]
[1647039574304,3.50432449,2571.3,2570.6,0.1943]
[1647039574505,3.50432449,2571.3,2570.5,0.00011858]
[1647039574700,3.5,2571.3,2570.5,0.00011858]
[1647039574901,4.47263,2571.3,2570.5,0.00011858]
[1647039575101,5.44526,2571.3,2570.5,0.00011858]
[1647039575502,0.97263,2571.0,2570.5,0.00011858]
[1647039576303,0.00432347,2570.9,2570.5,0.00011858]
[1647039577102,4.47695347,2570.9,2570.5,0.00011858]
[1647039577351,5.33215347,2570.9,2570.5,0.00011858]
[1647039577746,5.32783,2570.9,2570.5,0.00011858]
[1647039578147,0.00432024,2570.8,2570.5,0.00011858]
[1647039578348,4.8643315,2570.7,2570.5,0.00011858]
[1647039578549,3.5,2570.6,2570.5,0.00011858]
[1647039578747,3.5,2570.6,2569.8,0.13594109]
[1647039579553,2.9185915,2570.7,2569.8,0.13594109]
[1647039579754,3.5,2570.6,2569.8,0.13594109]
[1647039579955,4.47704026,2570.6,2569.8,0.13594109]
[1647039580153,0.97289,2570.5,2569.8,0.13594109]
[1647039580554,0.97289,2570.5,2569.7,0.57649666]
[1647039580753,3.5,2570.4,2569.7,0.57649666]
[1647039580953,1.9458,2570.5,2569.7,0.57649666]
[1647039582095,1.9458,2570.5,2569.8,0.77908476]
[1647039583299,3.5,2570.4,2569.8,0.77908476]
[1647039583499,0.9729,2570.3,2569.8,0.77908476]
[1647039595250,0.9729,2570.3,2569.9,0.9727548]
[1647039595449,0.97289,2570.5,2570.0,0.77908476]
[1647039595450,0.97268,2570.5,2570.0,0.77908476]
[1647039595749,0.97268,2570.5,2570.1,0.77908476]
[1647039595948,0.97268,2570.5,2569.8,12.85]
[1647039595949,0.97268,2570.5,2570.2,0.77908476]
[1647039596192,0.97268,2570.5,2570.3,0.77908476]
[1647039596391,0.97268,2570.5,2570.4,0.77908476]
[1647039596591,0.97266,2570.6,2570.4,0.77908476]
[1647039596792,0.97687712,2570.6,2570.5,0.77908476]
[1647039596993,1.82511292,2570.6,2570.5,0.77908476]
[1647039597599,1.8208958,2570.6,2570.5,0.77908476]
[1647039598096,0.97266,2570.6,2570.5,0.77908476]
[1647039598295,0.00421726,2570.7,2570.6,0.70432198]
[1647039598495,0.00421726,2570.7,2570.6,1.48340674]
[1647039598896,0.86661458,2570.9,2570.6,1.48340674]
[1647039599096,0.00420259,2570.8,2570.7,0.77908476]
[1647039599697,0.50420259,2570.8,2570.7,0.77908476]
[1647039599942,1.37081717,2570.8,2570.7,0.77908476]
[1647039600150,1.36661458,2570.8,2570.7,0.77908476]
[1647039602342,0.5,2570.8,2570.7,0.77908476]
[1647039602549,1.36673229,2570.8,2570.7,0.77908476]
[1647039602849,4.86673229,2570.8,2570.7,0.77908476]
[1647039603045,5.1201868,2570.8,2570.6,0.70432198]
[1647039603246,4.36673229,2570.7,2570.6,0.70432198]
[1647039603894,5.54356529,2570.7,2570.6,0.70432198]
[1647039604292,7.48929519,2570.7,2570.6,0.70432198]
[1647039604492,7.7427497,2570.7,2570.6,0.70432198]
[1647039604694,4.2427497,2570.7,2570.6,0.70432198]
[1647039606796,4.5427497,2570.7,2570.6,0.70432198]
[1647039606996,5.25126844,2570.7,2570.6,2.198e-05]
[1647039607452,4.5427497,2570.7,2570.6,2.198e-05]
[1647039607852,6.0634497,2570.7,2570.6,2.198e-05]
[1647039608055,6.0634497,2570.7,2569.7,0.69172564]
[1647039608056,0.97311,2570.3,2569.7,0.69172564]
[1647039608254,1.83984229,2570.2,2569.7,0.69172564]
[1647039608452,0.25345451,2570.0,2569.7,0.69172564]
[1647039608653,0.86673229,2569.9,2569.6,0.1945]
[1647039609054,0.97313,2570.0,2569.8,0.9155024]
[1647039609254,1.94624,2569.9,2569.8,1.8310048]
[1647039609453,2.85067573,2569.9,2569.8,1.8310048]
[1647039610056,4.28096324,2569.9,2569.8,1.8310048]
[1647039616140,3.37652751,2569.9,2569.8,1.8310048]
[1647039616341,4.28059939,2569.9,2569.8,1.8310048]
[1647039618346,4.28059939,2569.9,2569.8,0.13218001]
[1647039618592,7.78059939,2569.9,2569.2,0.00156266]
[1647039618793,1.87723188,2569.8,2569.6,0.13218001]
[1647039618993,0.90407188,2569.7,2569.6,0.13218001]
[1647039620493,2.08090488,2569.7,2569.6,0.13218001]
[1647039620695,2.33435939,2569.7,2569.6,0.13218001]
[1647039622096,2.3172299,2569.7,2569.6,0.13218001]
[1647039622550,1.1403969,2569.7,2569.6,0.13218001]
[1647039622750,2.22001195,2569.7,2569.6,0.13218001]
[1647039623550,5.72001195,2569.7,2569.6,0.13218001]
[1647039623952,2.22001195,2569.7,2569.6,0.13218001]
[1647039624953,5.72001195,2569.7,2569.6,0.13218001]
[1647039625555,6.02001195,2569.7,2569.6,0.13218001]
[1647039626400,1.94695,2569.4,2569.0,0.04618878]
[1647039626596,4.38694239,2569.3,2569.0,0.04618878]
[1647039626796,0.88694239,2569.2,2569.0,0.04618878]
[1647039626996,3.5,2569.1,2569.0,0.04618878]
[1647039627197,4.38694239,2569.1,2569.0,0.04618878]
[1647039628202,5.46655744,2569.1,2569.0,0.04618878]
[1647039628400,5.72001195,2569.1,2569.0,0.04618878]
[1647039629201,5.72001195,2569.1,2568.8,0.0042896]
[1647039629202,0.97365,2569.0,2568.8,0.0042896]
[1647039629401,4.85794239,2568.9,2568.8,0.0042896]
[1647039629854,6.19101195,2568.9,2568.8,0.0042896]
[1647039630246,0.9,2568.8,2568.5,0.0171603]
[1647039630448,1.94742,2568.7,2568.2,2.79570538]
[1647039630648,3.5,2568.6,2568.3,0.66077477]
[1647039630848,3.5,2568.6,2568.3,0.67791679]
[1647039631048,3.5,2568.6,2568.3,0.01714202]
[1647039631247,1.07961505,2568.4,2568.3,0.01714202]
[1647039631449,1.33306956,2568.4,2568.3,0.66036278]
[1647039631652,2.30673956,2568.4,2568.3,0.66036278]
[1647039631849,2.30673956,2568.4,2568.2,2.79570538]
[1647039632148,0.97367,2568.4,2568.2,2.79570538]
[1647039632552,1.94737,2568.4,2568.2,2.79570538]
[1647039632752,1.94737,2568.4,2568.2,0.00146292]
[1647039632753,5.55338505,2568.3,2568.2,0.00146292]
[1647039632958,1.87378,2568.2,2567.1,1.11076492]
[1647039633154,1.87378,2568.2,2567.2,0.65987778]
[1647039633155,5.36389323,2568.1,2567.2,0.65987778]
[1647039633354,5.36389323,2568.1,2566.5,1.44628689]
[1647039633355,0.9740742,2567.6,2566.6,1.37362442]
[1647039633597,0.97405,2567.5,2566.7,0.85457778]
[1647039633800,0.97405,2567.5,2566.8,0.65987778]
[1647039634001,3.5,2567.4,2566.9,0.1947]
[1647039634203,0.97411,2567.3,2567.0,0.65987778]
[1647039634398,4.57961505,2567.2,2567.1,0.65987778]
[1647039634600,4.47417,2567.2,2566.6,0.65987778]
[1647039634799,0.97417,2567.2,2566.6,0.65987778]
[1647039635400,3.5,2567.1,2566.6,0.65987778]
[1647039635600,0.9742518,2567.1,2566.6,0.65987778]
[1647039635800,2.92287,2567.0,2566.6,0.65987778]
[1647039636001,1.33306956,2566.8,2566.6,0.65987778]
[1647039636201,1.94861,2567.0,2566.6,0.65987778]
[1647039636601,1.94861,2567.0,2566.7,0.00160203]
[1647039637104,2.92291,2566.9,2566.7,0.00160203]
[1647039637345,2.92291,2566.9,2566.5,0.65987778]
[1647039637550,1.33306956,2566.8,2566.7,0.00461089]
[1647039637751,2.92291,2566.9,2566.7,0.00461089]
[1647039637950,2.92291,2566.9,2566.7,0.66448867]
[1647039638150,2.92291,2566.9,2566.7,0.00461089]
[1647039638351,3.5,2566.8,2566.7,0.00461089]
[1647039638549,3.5,2566.8,2566.4,0.0165891]
[1647039638752,3.5,2566.8,2566.7,0.00461092]
[1647039638952,6.78203956,2566.8,2566.7,0.00461092]
[1647039639751,2.9235553,2566.7,2566.4,0.0165891]
[1647039639952,3.5,2566.6,2566.0,0.0061087]
[1647039640154,3.5,2566.6,2566.2,0.01844658]
[1647039640552,1.33306956,2566.4,2566.2,0.01844658]
[1647039640751,1.33306956,2566.4,2566.0,0.0061087]
[1647039640752,3.5,2566.6,2566.0,0.0061087]
[1647039640952,3.5,2566.6,2566.1,0.59521877]
[1647039641198,1.94896,2566.4,2566.1,0.59521877]
[1647039641398,5.44896,2566.4,2566.1,0.59521877]
[1647039641602,2.92344,2566.4,2566.1,0.59521877]
[1647039641900,2.92344,2566.4,2566.0,0.0061087]
[1647039642096,1.33306956,2566.2,2566.0,0.0061087]
[1647039642297,0.97447,2566.3,2566.1,0.54473839]
[1647039642502,0.97447,2566.3,2566.0,0.0061087]
[1647039643502,1.07961505,2566.2,2566.0,0.0061087]
[1647039643800,0.97447,2566.3,2566.0,0.0061087]
[1647039644406,4.47447,2566.3,2566.0,0.0061087]
[1647039644605,4.47447,2566.3,2565.3,2.8601]
[1647039644864,4.47447,2566.3,2565.3,2.75311065]
[1647039644865,0.97447,2566.3,2565.3,2.75311065]
[1647039645055,1.07961505,2566.1,2566.0,0.00440605]
[1647039645253,1.94933,2566.2,2566.0,0.00440605]
[1647039645454,3.89859,2566.2,2566.0,0.00440605]
[1647039645653,3.89859,2566.2,2565.1,1.2198]
[1647039645654,0.97458,2566.0,2565.1,1.2198]
[1647039645855,0.97458,2566.0,2564.8,1.13031282]
[1647039646054,0.97458,2566.0,2565.0,0.0196029]
[1647039646655,1.33306956,2565.5,2565.0,0.0196029]
[1647039646856,0.97461,2565.5,2565.0,0.0196029]
[1647039647255,5.4499978,2565.4,2564.8,0.0195479]
[1647039647460,5.4499978,2565.4,2564.5,0.5]
[1647039647461,1.371,2565.3,2564.5,0.5]
[1647039647760,3.5,2565.2,2564.5,0.5]
[1647039647959,0.97515,2564.9,2564.5,0.5]
[1647039648161,0.25345451,2564.7,2564.4,0.0504006]
[1647039648360,5.4504488,2564.8,2564.4,0.0504006]
[1647039648598,0.8552,2564.7,2564.4,0.0504006]
[1647039648800,3.5,2564.6,2564.4,0.0504006]
[1647039649199,0.97523,2564.6,2564.4,0.0504006]
[1647039649400,1.95043,2564.6,2564.4,0.0504006]
[1647039649603,1.07961505,2564.5,2564.4,0.05465196]
[1647039649799,4.83306956,2564.5,2564.4,0.05465196]
[1647039650199,1.33306956,2564.5,2564.4,0.05465196]
[1647039650700,1.33306956,2564.5,2564.4,0.0504006]
[1647039654356,6.956e-05,2564.5,2564.4,0.0504006]
[1647039654555,0.04432628,2565.1,2564.4,0.0504006]
[1647039654955,0.04432628,2565.1,2564.5,3.0]
[1647039655153,0.04432628,2565.1,2564.7,11.85]
[1647039655356,0.1158076,2565.5,2564.9,11.85]
[1647039655558,0.1158076,2565.5,2565.1,11.85]
[1647039655755,0.1158076,2565.5,2565.1,12.85]
[1647039655958,0.1158076,2565.5,2565.4,14.85]
[1647039656205,7.6e-06,2565.5,2565.4,14.12425]
[1647039656405,7.6e-06,2565.5,2565.4,14.7985083]
[1647039657008,0.04432628,2566.1,2565.4,18.5695083]
[1647039657206,0.04432628,2566.1,2565.7,11.85]
[1647039657414,0.04432628,2566.1,2565.9,13.7982062]
[1647039657809,0.04432628,2566.1,2565.9,14.7982062]
[1647039658011,2.628e-05,2566.1,2565.9,14.7982062]
[1647039658409,0.04432629,2566.7,2566.4,0.00077372]
[1647039659011,1.01849629,2566.7,2566.4,0.00077372]
[1647039659610,1.01282257,2566.7,2566.4,0.00077372]
[1647039661550,1.01282257,2566.7,2566.4,0.0053709]
[1647039662755,1.01282257,2566.7,2566.4,0.00077372]
[1647039662955,1.01282257,2566.7,2566.4,0.00508815]
[1647039663997,1.01282257,2566.7,2566.4,0.00077372]
[1647039664196,1.01282257,2566.7,2566.4,0.00508815]
[1647039664896,1.01282257,2566.7,2566.4,0.00077372]
[1647039665297,1.01282257,2566.7,2566.4,0.00508815]
[1647039665298,4.51282257,2566.7,2566.4,0.00508815]
[1647039665699,5.81282257,2566.7,2566.4,0.00508815]
[1647039665900,6.00762257,2566.7,2566.4,0.00508815]
[1647039666101,6.00762257,2566.7,2566.4,0.00077372]
[1647039666305,0.8552,2566.5,2566.4,0.00077372]
[1647039666500,4.55,2566.5,2566.4,0.00077372]
[1647039666700,4.55,2566.5,2566.0,0.01703811]
[1647039666701,4.85,2566.5,2566.0,0.01703811]
[1647039666900,0.9746336,2566.1,2566.0,0.01703811]
[1647039667103,5.4492936,2566.1,2566.0,0.01703811]
[1647039667355,5.4492936,2566.1,2564.8,0.9746167]
[1647039667549,0.97462,2566.0,2564.8,0.9746167]
[1647039667752,3.5,2565.9,2564.8,0.9746167]
[1647039668148,0.97462,2565.5,2564.8,0.9746167]
[1647039668350,1.94924,2565.8,2564.8,1.9492567]
[1647039668648,1.94924,2565.8,2564.8,0.97464]
[1647039668849,3.5,2565.9,2564.8,0.97464]
[1647039669049,4.47467,2565.9,2564.7,13.79916]
[1647039669249,4.47467,2565.9,2564.7,14.79916]
[1647039669850,0.97467,2565.9,2564.7,13.79916]
[1647039670050,1.94936,2565.6,2565.2,0.00459795]
[1647039670950,1.94936,2565.6,2564.8,0.97616635]
[1647039671199,0.97461,2565.5,2565.3,0.00459789]
[1647039671402,1.94936,2565.6,2565.3,0.00459789]
[1647039671801,1.01891549,2566.1,2565.3,0.00459789]
[1647039672002,1.94909,2565.9,2565.3,0.00459789]
[1647039672300,1.94909,2565.9,2565.1,0.00153595]
[1647039672506,1.94909,2565.9,2565.3,0.00459786]
[1647039672706,1.94909,2565.9,2565.0,0.93062381]
[1647039672910,0.04432629,2566.1,2565.3,12.82448]
[1647039673106,0.04432629,2566.1,2565.4,15.35]
[1647039673305,0.04432629,2566.1,2565.4,16.35]
[1647039673705,0.04432629,2566.1,2565.6,11.85]
[1647039673905,0.04432629,2566.1,2565.8,0.97426]
[1647039674105,0.04432629,2566.1,2565.8,12.82426]
[1647039674706,0.04432629,2566.1,2565.9,15.35]
[1647039674948,0.04432629,2566.1,2565.9,11.85]
[1647039675154,0.04432629,2566.1,2565.9,12.85]
[1647039675551,0.04432629,2566.1,2565.9,13.321]
[1647039676153,0.04432629,2566.1,2566.0,12.82416]
[1647039676349,0.04432629,2566.1,2566.0,13.82416]
[1647039677954,0.04432629,2566.1,2566.0,12.82416]
[1647039678157,0.04432629,2566.1,2566.0,13.82416]
[1647039678354,0.0706974,2566.2,2566.0,13.82416]
[1647039679297,0.0706974,2566.2,2566.0,1.97416]
[1647039679699,0.0706974,2566.2,2566.0,12.82416]
[1647039680298,0.0706974,2566.2,2566.0,1.97416]
[1647039680498,0.0706974,2566.2,2566.0,0.97416]
[1647039682100,0.0706974,2566.2,2566.1,11.85]
[1647039682365,0.16013389,2566.5,2566.3,0.97396]
[1647039682559,0.16013389,2566.5,2566.4,11.85]
[1647039683159,0.16013389,2566.5,2566.4,13.79789]
[1647039684156,0.16013389,2566.5,2566.4,13.74789]
[1647039691451,0.16013389,2566.5,2566.4,14.26131785]
[1647039691652,0.27594149,2566.5,2566.4,14.26131785]
[1647039692457,0.27594149,2566.5,2566.4,15.26131785]
[1647039692658,0.48824231,2566.8,2566.6,11.8]
[1647039692860,0.44817893,2567.1,2566.8,11.8]
[1647039692861,0.49642554,2567.1,2566.8,11.8]
[1647039693058,0.39379405,2567.4,2567.0,11.8]
[1647039693258,0.39379405,2567.4,2567.1,16.08442785]
[1647039693703,0.39379405,2567.4,2567.1,15.23761688]
[1647039693902,0.00174493,2567.7,2567.3,11.8]
[1647039694102,0.00174493,2567.7,2567.3,12.271]
[1647039694301,0.00429487,2567.4,2567.3,13.271]
[1647039695102,0.00174493,2567.7,2567.3,14.95320633]
[1647039695302,0.00174493,2567.7,2567.3,14.72423903]
[1647039695501,0.00174493,2567.7,2567.5,11.8]
[1647039695701,0.00174493,2567.7,2567.5,15.04691]
[1647039695904,0.00174493,2567.7,2567.5,15.7203404]
[1647039696101,0.00174493,2567.7,2567.6,11.8]
[1647039696305,0.00174493,2567.7,2567.6,12.8]
[1647039696704,0.00476561,2567.7,2567.6,12.8]
[1647039697347,0.00476561,2567.7,2567.6,13.77346]
[1647039697553,0.00174493,2567.7,2567.6,13.77346]
[1647039698156,0.00174493,2567.7,2567.6,14.27283121]
[1647039698456,0.02183958,2567.8,2567.6,14.74689]
[1647039698857,0.02614992,2567.8,2567.6,14.74689]
[1647039699055,0.02614992,2567.8,2567.6,15.21789]
[1647039699256,0.02614993,2567.8,2567.6,15.21789]
[1647039699754,0.02183959,2567.8,2567.6,15.21789]
[1647039700256,0.00348988,2567.8,2567.6,15.51789]
[1647039700456,0.00174494,2567.8,2567.6,15.69762903]
[1647039701199,0.00174494,2567.8,2567.6,15.39762903]
[1647039706353,0.02183959,2567.8,2567.6,15.39762903]
[1647039707758,0.02358453,2567.8,2567.6,15.39762903]
[1647039707961,0.02183959,2567.8,2567.6,15.39762903]
[1647039708160,0.02183959,2567.8,2567.6,15.69762903]
[1647039708599,0.00174494,2567.8,2567.6,15.69762903]
[1647039708802,0.00348988,2567.8,2567.6,15.69762903]
[1647039709000,0.00174494,2567.8,2567.7,14.7202565]
[1647039709404,0.00174494,2567.8,2567.7,15.7202565]
[1647039709605,0.02183959,2567.8,2567.7,2.9202565]
[1647039709806,0.02183959,2567.8,2567.7,0.9734165]
[1647039710203,0.02183959,2567.8,2567.6,0.97346]
[1647039710403,0.02183959,2567.8,2567.5,2.52279502]
[1647039711007,0.02183959,2567.8,2567.5,2.52105008]
[1647039711408,0.02183959,2567.8,2567.5,3.49463478]
[1647039711610,0.00174494,2567.8,2567.1,1.9473]
[1647039711812,0.00174494,2567.8,2566.9,0.00153595]
[1647039712010,0.00174494,2567.8,2566.8,1.73272333]
[1647039712207,0.00174494,2567.8,2566.8,1.73399351]
[1647039712464,1.94757,2567.7,2566.8,1.73399351]
[1647039712664,1.94757,2567.7,2566.9,0.95372535]
[1647039714863,1.74289972,2567.7,2566.9,0.95372535]
[1647039715464,0.01218396,2567.5,2566.8,0.02163859]
[1647039715665,0.01218396,2567.5,2566.8,0.02211545]
[1647039715666,0.98644396,2567.5,2566.8,0.02211545]
[1647039715864,1.94858,2567.4,2566.8,0.02211545]
[1647039716503,2.92278,2567.3,2566.8,0.02211545]
[1647039716804,0.97429,2566.9,2566.0,0.00153595]
[1647039717007,0.97429,2566.9,2566.8,0.00442288]
[1647039717808,0.97429,2566.9,2566.1,0.00153595]
[1647039718007,0.97429,2566.9,2566.7,0.00442267]
[1647039718608,0.00139423,2566.5,2566.3,0.01769334]
[1647039719009,0.00139423,2566.5,2566.0,12.43323754]
[1647039719409,0.00139423,2566.5,2566.1,11.85]
[1647039719865,0.00139423,2566.5,2566.1,12.85]
[1647039720450,0.00139423,2566.5,2566.2,11.85]
[1647039720649,0.00139423,2566.5,2566.4,11.85]
[1647039724103,0.00139423,2566.5,2566.4,17.00073903]
[1647039724104,9.423e-05,2566.5,2566.4,17.00073903]
[1647039724400,9.423e-05,2566.5,2566.4,17.30073903]
[1647039724803,9.423e-05,2566.5,2566.4,18.29684146]
[1647039725001,9.423e-05,2566.5,2566.4,20.62584146]
[1647039725201,0.00459532,2567.4,2566.6,12.15]
[1647039725401,0.00174494,2567.8,2566.8,11.85]
[1647039725800,0.00174494,2567.8,2566.8,13.02973903]
[1647039726003,0.00459532,2567.4,2566.8,13.02973903]
[1647039726200,0.00459532,2567.4,2566.8,1.17973903]
[1647039726600,0.00459626,2567.4,2566.8,0.17973903]
[1647039726802,0.00459626,2567.4,2566.9,1.94764]
[1647039727002,0.00459626,2567.4,2566.9,14.77148]
[1647039727203,0.00459626,2567.4,2567.0,1.9477067]
[1647039727460,3.50174494,2567.8,2567.0,13.7977067]
[1647039727656,0.00428713,2567.4,2567.0,12.8238467]
[1647039727856,0.00428713,2567.4,2567.0,13.8238467]
[1647039728057,0.00428713,2567.4,2567.0,14.7976367]
[1647039728756,0.97382,2567.6,2567.0,14.7976367]
[1647039729456,3.5,2567.5,2567.0,0.9738467]
[1647039729658,0.97397,2567.5,2566.8,0.77419991]
[1647039729858,4.47397,2567.5,2566.8,1.77419991]
[1647039730060,4.42397,2567.5,2566.8,0.77419991]
[1647039730258,0.92397,2567.5,2566.8,0.77419991]
[1647039730659,0.92397,2567.5,2566.8,1.74814991]
[1647039731102,4.42397,2567.5,2566.8,1.74814991]
[1647039731503,0.00459196,2567.4,2566.8,1.74814991]
[1647039731705,0.97393,2567.3,2566.8,1.74814991]
[1647039732102,0.97393,2567.3,2566.8,1.74640497]
[1647039734852,0.97393,2567.3,2566.9,0.54191015]
[1647039735259,0.97393,2567.3,2566.9,1.51582015]
[1647039735454,0.97393,2567.3,2567.0,0.54191015]
[1647039736255,0.00415529,2567.4,2567.0,1.51578015]
[1647039736455,0.00415529,2567.4,2567.1,0.54191015]
[1647039737059,7.3704,2568.1,2567.1,0.54191015]
[1647039737257,1.03387268,2568.0,2567.1,0.54191015]
[1647039737459,0.00418204,2567.4,2567.2,1.947384]
[1647039737660,0.00418204,2567.4,2567.3,1.51560015]
[1647039738461,1.03427728,2567.8,2567.3,0.54191015]
[1647039738705,0.00396725,2567.5,2567.3,0.54191015]
[1647039738905,0.00396725,2567.5,2567.2,0.54191015]
[1647039739106,0.00396725,2567.5,2567.3,0.54217297]
[1647039739306,0.00396725,2567.5,2567.1,2.9212206]
[1647039739307,0.00396725,2567.5,2567.1,3.9212206]
[1647039739507,0.00396725,2567.5,2567.2,0.54212038]
[1647039739706,0.97384,2567.6,2567.2,0.54212038]